[Event "53rd Mongolian Women-ch 2023"]
[Site "Khovd"]
[Date "2023.05.24"]
[Round "6.1"]
[White "Udval, Enkhsaikhan"]
[Black "Amin-Erdene, Bayanmunkh"]
[Result "0-1"]
[ECO "D30"]
[WhiteElo "1682"]
[BlackElo "1620"]
[Annotator "NA RC COMBH"]
[PlyCount "90"]
[EventDate "2023.05.22"]
[EventType "tourn"]
[EventCountry "MGL"]
[SourceTitle "playchess.com"]
[Source "ChessBase"]
[SourceQuality "1"]
[TimeControl "40/5400+30:1800+30"]

1. d4 {[%emt 0:00:02]} d5 {[%emt 0:00:12]} 2. c4 {[%emt 0:00:10]} e6 {[%emt 0:00:10]} 3. Nf3 {[%emt 0:00:13]} a6 {[%emt 0:00:12]} 4. Nbd2 {[%emt 0:00:39]} dxc4 {[%emt 0:01:09]} 5. Nxc4 {[%emt 0:00:10]} b5 {[%emt 0:00:20]} 6. Nce5 {[%emt 0:00:45]} Bb7 {[%emt 0:02:16]} 7. g3 {[%emt 0:00:23]} Nd7 {[%emt 0:01:45]} 8. Nxd7 {[%emt 0:04:14]} Bb4+ {[%emt 0:00:16]} 9. Bd2 {[%emt 0:01:02]} Bxd2+ {[%emt 0:00:14]} 10. Qxd2 {[%emt 0:00:14]} Bxf3 {[%emt 0:00:26]} 11. exf3 {[%emt 0:00:11]} Qxd7 {[%emt 0:00:08]} 12. Bg2 {[%emt 0:03:37]} Ne7 {[%emt 0:06:17]} 13. O-O {[%emt 0:24:36]} O-O {[%emt 0:08:37]} 14. f4 {[%emt 0:03:33]} Rac8 {[%emt 0:19:33]} 15. Qa5 {[%emt 0:06:18]} Qxd4 {[%emt 0:13:32]} 16. Qxa6 {[%emt 0:00:25]} c6 {[%emt 0:01:03]} 17. Qa3 {[%emt 0:06:16]} Nd5 {[%emt 0:01:09]} 18. Rfd1 {[%emt 0:03:09]} Qb6 {[%emt 0:04:35]} 19. Qb3 {[%emt 0:04:51]} Qa6 {[%emt 0:10:28]} 20. f5 {[%emt 0:07:29]} Ra8 {[%emt 0:09:52]} 21. a3 {[%emt 0:03:38]} Qb6 {[%emt 0:06:03]} 22. Rac1 {[%emt 0:01:51]} g6 {[%emt 0:03:37]} 23. fxe6 {[%emt 0:12:22]} fxe6 {[%emt 0:00:10]} 24. Qc2 {[%emt 0:00:24]} Rac8 {[%emt 0:05:57]} 25. Qe2 {[%emt 0:04:22]} Rf6 {[%emt 0:01:16]} 26. Bh3 {[%emt 0:00:45]} Rcf8 {[%emt 0:00:47]} 27. Rf1 {[%emt 0:02:30]} Kg7 {[%emt 0:00:56]} 28. Qe5 {[%emt 0:01:15]} c5 {[%emt 0:00:44]} 29. Bg2 {[%emt 0:02:09]} c4 {[%emt 0:00:47]} 30. g4 {[%emt 0:03:37]} h6 {[%emt 0:00:27]} 31. Rc2 {[%emt 0:01:07]} Nf4 {[%emt 0:00:34]} 32. Be4 {[%emt 0:01:18]} Kh7 {[%emt 0:01:00]} 33. Qc3 {[%emt 0:02:18]} Nd5 {[%emt 0:00:42]} 34. Qh3 {[%emt 0:00:54]} Kg7 {[%emt 0:00:44]} 35. Bxd5 {[%emt 0:00:27]} exd5 {[%emt 0:00:01]} 36. Re2 {[%emt 0:00:34]} Qc5 {[%emt 0:00:52]} 37. Qg3 {[%emt 0:00:38]} Rf4 {[%emt 0:00:48]} 38. Rfe1 {[%emt 0:00:21]} R8f7 {[%emt 0:00:28]} 39. h3 {[%emt 0:00:37]} d4 {[%emt 0:00:46]} 40. Re5 {[%emt 0:00:00]} Qc6 {[%emt 0:00:00]} 41. R1e2 {[%emt 0:08:38]} d3 {[%emt 0:12:34]} 42. Rd2 {[%emt 0:00:53]} Rf3 {[%emt 0:01:33]} 43. Qh2 {[%emt 0:00:14]} c3 {[%emt 0:02:36]} 44. bxc3 {[%emt 0:00:17]} Qxc3 {[%emt 0:00:15]} 45. Re6 {[%emt 0:04:27]} Qxd2 {[%emt 0:17:09]} 0-1

[Event "53rd Mongolian Women-ch 2023"]
[Site "Khovd"]
[Date "2023.05.24"]
[Round "6.2"]
[White "Khuslen, Erdenebayar"]
[Black "Margadgua Erdenebayar"]
[Result "1/2-1/2"]
[ECO "D43"]
[WhiteElo "1835"]
[BlackElo "1934"]
[Annotator "TA"]
[PlyCount "77"]
[EventDate "2023.05.22"]
[EventType "tourn"]
[EventCountry "MGL"]
[SourceTitle "playchess.com"]
[Source "ChessBase"]
[SourceQuality "1"]
[TimeControl "40/5400+30:1800+30"]

{[%evp 14,77,35,14,17,-2,0,0,0,0,0,-30,-15,-40,-40,-49,-51,-38,-52,-47,-27,-43,-6,-28,23,-72,-71,-67,-60,-67,-4,-4,-5,-8,-10,-8,-4,-18,0,0,0,0,0,-9,0,-20,-22,-11,0,-35,-9,-35,-35,-35,-35,-35,-35,-35,0,-74,0,0,0,0,0,0]} 1. d4 {[%emt 0:00:02]} d5 {[%emt 0:00:05]} 2. c4 {[%emt 0:00:33]} c6 {[%emt 0:00:07]} 3. Nc3 {[%emt 0:00:28]} Nf6 {[%emt 0:00:08]} 4. Nf3 {[%emt 0:00:32]} e6 {[%emt 0:00:21]} 5. Bg5 {[%emt 0:00:53]} h6 {[%emt 0:00:36]} 6. Bxf6 {[%emt 0:02:25]} Qxf6 {[%emt 0:00:18]} 7. e3 {[%emt 0:00:27]} Nd7 {[%emt 0:01:06]} 8. Rc1 {[%emt 0:02:15]} g6 {[%emt 0:09:17] D43: Semi-Slav: 5 Bg5 h6.} 9. b3 {[%emt 0:05:03]} Bg7 {[%emt 0:03:39]} 10. Bd3 {[%emt 0:00:47]} O-O {[%emt 0:01:11] [#]} 11. O-O $146 {[%emt 0:00:39]} ({Predecessor:} 11. Bb1 b6 12. cxd5 exd5 13. O-O Bb7 14. Re1 Rad8 15. Qc2 Rfe8 16. Ne2 Qd6 17. Ng3 {0-1 Manush,S (1893)-Debashis,D (2421) IND-ch U19 40th 2010 (1)}) 11... Qe7 {[%emt 0:02:44]} 12. e4 {[%emt 0:07:11]} dxe4 {[%emt 0:02:46]} 13. Nxe4 {[%emt 0:01:51]} e5 {[%emt 0:00:31]} 14. dxe5 {[%emt 0:05:17]} Nxe5 {[%emt 0:01:15]} 15. Nxe5 {[%emt 0:00:15]} Bxe5 {[%emt 0:09:58]} 16. Ng3 {[%emt 0:01:55] Dodges Bf5. White is weak on the dark squares} Qg5 {[%emt 0:06:10]} 17. Re1 {[%emt 0:09:08]} Bd4 {[%emt 0:03:09]} 18. Ne4 {[%emt 0:12:15]} (18. c5 {simplifies} Bg4 19. Qc2 Rad8 20. Ne4) 18... Qf4 {[%emt 0:04:57]} (18... Qa5 $142) 19. Qd2 {[%emt 0:06:44]} (19. g3 $11 {remains equal.} Qc7 20. c5) 19... Qxd2 $17 {[%emt 0:03:41]} 20. Nxd2 {[%emt 0:00:06]} Rd8 {[%emt 0:00:31] [#] ...Bb6 is the strong threat.} 21. Nf3 {[%emt 0:01:02]} Bg4 {[%emt 0:18:07]} (21... Bc5 $15 22. Bc2 Bb4) 22. Nxd4 $11 {[%emt 0:07:29]} Rxd4 {[%emt 0:00:06]} 23. Be2 {[%emt 0:00:12]} Bxe2 {[%emt 0:02:24]} 24. Rxe2 {[%emt 0:00:02][%mdl 4096] Endgame KRR-KRR} Rad8 {[%emt 0:00:01]} 25. Rce1 {[%emt 0:02:31]} Kf8 {[%emt 0:03:46]} 26. g3 {[%emt 0:01:46]} Rd2 {[%emt 0:04:48]} 27. Kg2 {[%emt 0:01:44]} a5 {[%emt 0:01:31]} 28. h4 {[%emt 0:02:42]} h5 {[%emt 0:00:24]} 29. Kf3 {[%emt 0:07:04]} R8d3+ {[%emt 0:01:20]} 30. Kg2 {[%emt 0:00:27]} Rd4 {[%emt 0:01:26][%cal Oa5a4]} 31. Re8+ {[%emt 0:07:25]} Kg7 {[%emt 0:00:01]} 32. R1e2 {[%emt 0:00:06] [#]} a4 $1 {[%emt 0:03:23]} 33. Rxd2 {[%emt 0:04:04]} (33. bxa4 Rxe2) 33... Rxd2 $15 {[%emt 0:00:20] KR-KR} 34. Rb8 {[%emt 0:01:56]} Rxa2 {[%emt 0:03:11]} 35. Rxb7 {[%emt 0:00:07]} Rb2 {[%emt 0:00:46]} 36. Rc7 {[%emt 0:01:42]} axb3 {[%emt 0:01:07]} (36... Rxb3 $17 {...Rb8 would be deadly.} 37. Rxc6 a3) 37. Rxc6 $11 {[%emt 0:00:16] The position is equal.} Rc2 {[%emt 0:00:03]} 38. Rb6 {[%emt 0:00:19]} Rxc4 {[%emt 0:00:03]} 39. Rxb3 {[%emt 0:00:05] Weighted Error Value: White=0.14 (very precise) /Black=0.13 (very precise)} 1/2-1/2

[Event "53rd Mongolian Women-ch 2023"]
[Site "Khovd"]
[Date "2023.05.24"]
[Round "6.4"]
[White "Mungunzul, Bat-Erdene"]
[Black "Bayasgalan, Khishigbaatar"]
[Result "1/2-1/2"]
[ECO "A84"]
[WhiteElo "2299"]
[BlackElo "1811"]
[Annotator "TA"]
[PlyCount "130"]
[EventDate "2023.05.22"]
[EventType "tourn"]
[EventCountry "MGL"]
[SourceTitle "playchess.com"]
[Source "ChessBase"]
[SourceQuality "1"]
[TimeControl "40/5400+30:1800+30"]

{[%evp 13,130,35,36,8,22,0,9,0,1,-23,-29,-27,-31,-44,0,0,-8,-14,-14,-68,47,44,47,43,73,73,79,13,13,13,15,16,15,21,12,-6,-5,-5,-4,-5,-5,-9,-20,-10,-9,-10,0,0,0,0,8,0,0,0,0,0,0,0,3,0,22,21,22,15,25,16,26,8,21,25,11,8,8,0,0,0,0,0,0,0,0,0,0,0,15,15,26,11,26,26,26,8,26,8,8,8,8,8,8,8,8,8,8,8,8,8,26,26,26,0,0,0,0,0,0,0,0,0,0]} 1. d4 {[%emt 0:00:02]} e6 {[%emt 0:00:15]} 2. c4 {[%emt 0:00:09]} b6 {[%emt 0:00:10]} 3. Nc3 {[%emt 0:01:03]} Bb7 {[%emt 0:00:25]} 4. Nf3 {[%emt 0:05:20]} f5 {[%emt 0:02:40]} 5. g3 {[%emt 0:01:02]} Nf6 {[%emt 0:02:22]} 6. Bg2 {[%emt 0:00:17]} Be7 {[%emt 0:01:13]} 7. O-O {[%emt 0:00:47]} O-O {[%emt 0:00:57]} 8. Re1 {[%emt 0:03:15] A84: Dutch Defence: 2 c4 Miscellaneous.} Ne4 {[%emt 0:00:43]} 9. Qd3 {[%emt 0:03:07]} Nxc3 {[%emt 0:00:41]} 10. Qxc3 {[%emt 0:01:02]} Bf6 {[%emt 0:01:13] [#]} 11. c5 $146 {[%emt 0:06:49]} ({Predecessor:} 11. e3 d6 12. b3 Nd7 13. Bb2 Nc5 14. Rad1 Ne4 15. Qc2 Qe8 16. Nd2 Qg6 17. Nxe4 Bxe4 {0-1 Koridze,L (2191)-Baziuk,V (2201) Titled Tuesday intern op 09th May Early blitz 2023 (5)}) 11... Be4 {[%emt 0:05:49]} 12. Bf4 {[%emt 0:10:57]} Nc6 {[%emt 0:02:31]} 13. Be5 {[%emt 0:06:34]} bxc5 {[%emt 0:04:40]} 14. Bxf6 {[%emt 0:01:58]} Qxf6 {[%emt 0:00:17]} 15. Qxc5 {[%emt 0:00:10]} Rab8 {[%emt 0:00:10]} 16. b3 {[%emt 0:03:55]} (16. Rad1 $11) 16... Bxf3 {[%emt 0:00:37]} (16... d6 $1 $15 17. Qc3 Bxf3 {[%mdl 64] Remove Defender, Deflection} 18. Qxf3 Nxd4) 17. Bxf3 $14 {[%emt 0:00:17]} Qxd4 {[%emt 0:01:15]} 18. Rec1 {[%emt 0:05:18]} Qxc5 {[%emt 0:11:35]} 19. Rxc5 {[%emt 0:00:09]} Rb6 {[%emt 0:00:16]} 20. Rd1 {[%emt 0:01:12]} ({Better is} 20. Bxc6 $16 dxc6 21. Rac1) 20... d5 $11 {[%emt 0:06:04]} 21. Rdc1 {[%emt 0:02:31]} Nb4 {[%emt 0:01:33]} 22. Rxc7 {[%emt 0:00:39] [#] a3 would be deadly.} Nxa2 {[%emt 0:00:38]} 23. Ra1 {[%emt 0:00:54]} Ra6 {[%emt 0:00:17]} 24. Rc2 {[%emt 0:00:15]} Nb4 {[%emt 0:00:10][%csl LRa1,LRc2]} 25. Rxa6 {[%emt 0:00:15]} Nxa6 {[%emt 0:00:53][%mdl 4096] Endgame KRB-KRN} 26. Rc6 {[%emt 0:00:20]} Nb4 {[%emt 0:00:05]} 27. Rxe6 {[%emt 0:00:10]} Kf7 {[%emt 0:00:05] Wards off Re7+} 28. Re3 {[%emt 0:04:42]} Rc8 {[%emt 0:00:21]} 29. g4 {[%emt 0:00:14]} d4 {[%emt 0:10:01]} 30. Re5 {[%emt 0:01:05]} fxg4 {[%emt 0:00:10]} 31. Bxg4 {[%emt 0:00:40]} Rc1+ {[%emt 0:01:33]} 32. Kg2 {[%emt 0:00:15]} d3 {[%emt 0:00:23]} 33. exd3 {[%emt 0:03:11]} Nxd3 {[%emt 0:00:11]} 34. Rb5 {[%emt 0:03:16]} Kf6 {[%emt 0:03:53]} 35. Rf5+ {[%emt 0:02:39]} Ke7 {[%emt 0:00:27]} 36. Ra5 {[%emt 0:00:45]} Ne1+ {[%emt 0:00:10]} 37. Kg3 {[%emt 0:00:11]} Kf8 {[%emt 0:01:44]} 38. f3 {[%emt 0:01:05]} Rc3 {[%emt 0:01:32]} 39. Rf5+ {[%emt 0:01:50]} Kg8 {[%emt 0:01:13]} 40. Rd5 {[%emt 0:00:00]} Kf7 {[%emt 0:00:00]} (40... Rxb3 $2 41. Be6+ Kf8 42. Rf5+ Ke8 43. Bxb3 $18) 41. Rd7+ {[%emt 0:13:07]} Kf8 {[%emt 0:07:11]} 42. Rb7 {[%emt 0:00:35]} a5 {[%emt 0:01:32]} 43. Rb5 {[%emt 0:01:52]} g6 {[%emt 0:01:41] Dodges Rf5+} 44. Re5 {[%emt 0:03:04]} h5 {[%emt 0:02:54]} 45. Rxe1 {[%emt 0:10:39] [#] Hoping for Be6.} hxg4 {[%emt 0:00:05]} 46. Kxg4 {[%emt 0:00:07]} Rxb3 {[%emt 0:00:27] KR-KR} 47. Re5 {[%emt 0:04:12]} a4 {[%emt 0:00:08]} 48. Ra5 {[%emt 0:00:21]} Kf7 {[%emt 0:01:30]} 49. Rxa4 {[%emt 0:00:10]} Rb5 {[%emt 0:00:04]} 50. h3 {[%emt 0:01:33]} Rc5 {[%emt 0:00:35]} 51. Ra7+ {[%emt 0:00:22]} Kf6 {[%emt 0:00:12]} 52. h4 {[%emt 0:00:23]} Rb5 {[%emt 0:00:09]} 53. Ra2 {[%emt 0:01:49]} Rb4+ {[%emt 0:00:12]} 54. Kg3 {[%emt 0:00:25]} Rb5 {[%emt 0:00:14]} 55. Re2 {[%emt 0:00:09]} Ra5 {[%emt 0:00:16]} 56. Kg4 {[%emt 0:00:18]} Ra1 {[%emt 0:00:26]} 57. Rh2 {[%emt 0:00:56]} Ra4+ {[%emt 0:00:10]} 58. Kg3 {[%emt 0:00:58]} Ra1 {[%emt 0:00:16]} 59. Rb2 {[%emt 0:00:28]} Ra4 {[%emt 0:00:13]} 60. Rb6+ {[%emt 0:00:27]} Kf7 {[%emt 0:00:08]} 61. f4 {[%emt 0:04:54]} Ra1 {[%emt 0:00:16] The position is equal.} 62. h5 {[%emt 0:00:10]} gxh5 {[%emt 0:00:54]} 63. Kh4 {[%emt 0:00:08]} Ra5 {[%emt 0:00:07]} 64. Rh6 {[%emt 0:00:32]} Kg7 {[%emt 0:00:14]} 65. Rxh5 {[%emt 0:00:08]} Rxh5+ {[%emt 0:00:05] Weighted Error Value: White=0.08 (flawless) /Black=0.09 (flawless)} 1/2-1/2

[Event "53rd Mongolian Women-ch 2023"]
[Site "Khovd"]
[Date "2023.05.24"]
[Round "6.5"]
[White "Enkhsaran, Batsaikhan"]
[Black "Enkhbolor Nyamdavaa"]
[Result "1-0"]
[ECO "A62"]
[WhiteElo "1756"]
[BlackElo "1699"]
[Annotator "NA RC COMBH"]
[PlyCount "105"]
[EventDate "2023.05.22"]
[EventType "tourn"]
[EventCountry "MGL"]
[SourceTitle "playchess.com"]
[Source "ChessBase"]
[SourceQuality "1"]
[TimeControl "40/5400+30:1800+30"]

1. d4 {[%emt 0:00:04]} Nf6 {[%emt 0:00:06]} 2. c4 {[%emt 0:00:18]} e6 {[%emt 0:00:09]} 3. g3 {[%emt 0:00:15]} c5 {[%emt 0:03:05]} 4. d5 {[%emt 0:00:56]} exd5 {[%emt 0:00:23]} 5. cxd5 {[%emt 0:00:08]} d6 {[%emt 0:00:11]} 6. Nc3 {[%emt 0:00:43]} g6 {[%emt 0:00:36]} 7. Bg2 {[%emt 0:00:29]} a6 {[%emt 0:01:39]} 8. a4 {[%emt 0:00:26]} Bg7 {[%emt 0:00:18]} 9. Nf3 {[%emt 0:00:26]} O-O {[%emt 0:01:39]} 10. O-O {[%emt 0:00:25]} Bg4 {[%emt 0:01:49]} 11. h3 {[%emt 1:31:50]} Bxf3 {[%emt 1:26:05]} 12. Bxf3 {[%emt 0:00:30]} Nbd7 {[%emt 0:00:30]} 13. Bg2 {[%emt 0:00:30]} Rb8 {[%emt 0:00:30]} 14. a5 {[%emt 0:00:30]} b5 {[%emt 0:00:30]} 15. axb6 {[%emt 0:00:00]} Rxb6 {[%emt 0:00:30]} 16. e4 {[%emt 0:01:00]} Qb8 {[%emt 0:00:30]} 17. Qe2 {[%emt 0:00:30]} Qb7 {[%emt 0:00:30]} 18. Nd1 {[%emt 0:00:30]} Ra8 {[%emt 0:00:30]} 19. Ne3 {[%emt 0:00:30]} Rb4 {[%emt 0:00:30]} 20. Nc2 {[%emt 0:00:00]} Rb3 {[%emt 0:00:00]} 21. Na3 {[%emt 0:00:00]} Rb4 {[%emt 0:00:00]} 22. Qc2 {[%emt 0:00:00]} Ne8 {[%emt 0:00:00]} 23. Nc4 {[%emt 0:00:00]} Qb5 {[%emt 0:00:00]} 24. Na5 {[%emt 0:00:00]} Bxb2 {[%emt 0:00:00]} 25. Ra2 {[%emt 0:00:00]} Bxc1 {[%emt 0:00:00]} 26. Rxc1 {[%emt 0:00:00]} Nb8 {[%emt 0:00:00]} 27. e5 {[%emt 0:00:00]} dxe5 {[%emt 0:00:00]} 28. Qxc5 {[%emt 0:00:00]} Qxc5 {[%emt 0:00:00]} 29. Rxc5 {[%emt 0:00:00]} Nd7 {[%emt 0:00:00]} 30. Rc1 {[%emt 0:00:00]} Nd6 {[%emt 0:00:00]} 31. Rc7 {[%emt 0:00:00]} Nb6 {[%emt 0:00:00]} 32. Kh2 {[%emt 0:00:00]} e4 {[%emt 0:00:00]} 33. Rc6 {[%emt 0:00:00]} Rd8 {[%emt 0:00:00]} 34. Rc1 {[%emt 0:00:00]} Rc8 {[%emt 0:00:00]} 35. Nc6 {[%emt 0:00:00]} Nxd5 {[%emt 0:00:00]} 36. Nxb4 {[%emt 0:00:00]} Nxb4 {[%emt 0:00:21]} 37. Rxc8+ {[%emt 0:00:00]} Nxc8 {[%emt 0:00:04]} 38. Ra4 {[%emt 0:00:00]} Nd3 {[%emt 0:01:05]} 39. Bxe4 {[%emt 0:00:00]} Nc5 {[%emt 0:01:11]} 40. Rc4 {[%emt 0:00:00]} Nxe4 {[%emt 0:00:00]} 41. Rxe4 {[%emt 0:00:00]} Kg7 {[%emt 0:01:59]} 42. Ra4 {[%emt 0:00:00]} Nd6 {[%emt 0:00:10]} 43. Rxa6 {[%emt 0:00:00]} Nf5 {[%emt 0:00:13]} 44. Kg2 {[%emt 0:00:00]} h5 {[%emt 0:00:17]} 45. g4 {[%emt 0:00:00]} hxg4 {[%emt 0:00:06]} 46. hxg4 {[%emt 0:00:00]} Nd4 {[%emt 0:00:19]} 47. f4 {[%emt 0:00:00]} Ne6 {[%emt 0:01:43]} 48. Kf3 {[%emt 0:00:17]} g5 {[%emt 0:02:51]} 49. f5 {[%emt 0:00:49]} Nf8 {[%emt 0:01:21]} 50. Ke4 {[%emt 0:01:06]} Nd7 {[%emt 0:00:14]} 51. Kd5 {[%emt 0:01:12]} Kg8 {[%emt 0:03:21]} 52. Rd6 {[%emt 0:00:59]} Nf8 {[%emt 0:00:09]} 53. Rd8 {[%emt 0:00:21]} 1-0

[Event "53rd Mongolian Women-ch 2023"]
[Site "Khovd"]
[Date "2023.05.24"]
[Round "6.6"]
[White "Enkhrii Enkh-Amgalan"]
[Black "Bayarmaa, Bayarjargal"]
[Result "1-0"]
[ECO "B90"]
[WhiteElo "1448"]
[BlackElo "2167"]
[Annotator "TA"]
[PlyCount "126"]
[EventDate "2023.05.22"]
[EventType "tourn"]
[EventCountry "MGL"]
[SourceTitle "playchess.com"]
[Source "ChessBase"]
[SourceQuality "1"]
[TimeControl "40/5400+30:1800+30"]

{[%evp 13,126,5,38,38,44,47,49,48,74,78,68,43,91,33,77,87,69,66,78,69,106,93,114,82,130,116,136,132,129,137,137,80,105,59,146,147,142,141,166,102,109,112,385,385,349,198,197,194,204,205,193,201,202,158,187,158,157,94,100,96,172,178,177,185,177,179,229,214,179,153,172,170,170,106,101,78,72,41,55,20,89,81,97,105,128,120,119,57,63,48,87,75,182,116,387,392,642,592,635,635,629,372,1252,1211,1777,1616,29979,4631,29989,29989,29989,29974,29993,29994,29996]} 1. e4 {[%emt 0:00:02]} c5 {[%emt 0:00:05]} 2. Nf3 {[%emt 0:00:04]} d6 {[%emt 0:00:13]} 3. d4 {[%emt 0:00:05]} cxd4 {[%emt 0:00:05]} 4. Nxd4 {[%emt 0:00:04]} Nf6 {[%emt 0:00:06]} 5. Nc3 {[%emt 0:00:04]} a6 {[%emt 0:00:04]} 6. h3 {[%emt 0:00:26]} e5 {[%emt 0:03:48] 6...e5 scores better than 6...e6.} 7. Nde2 {[%emt 0:00:29]} Be6 {[%emt 0:00:13]} 8. g4 {[%emt 0:00:22] B90: Sicilian Najdorf: Unusual White 6th moves, 6 Be3 Ng4 and 6 Be3 e5.} Nc6 {[%emt 0:01:39]} 9. Bg2 {[%emt 0:01:38]} Be7 {[%emt 0:00:21]} 10. Be3 {[%emt 0:03:01] White is slightly better.} b5 {[%emt 0:00:44]} 11. Ng3 {[%emt 0:08:25]} O-O {[%emt 0:07:23]} 12. O-O {[%emt 0:04:07] [#]} Qc7 $146 {[%emt 0:04:58]} (12... Na5 $14 {deserves consideration.}) ({Predecessor:} 12... Rc8 13. Nf5 Re8 14. Nd5 Bxd5 15. exd5 Na5 16. b3 Qc7 17. Rc1 Nb7 18. c4 bxc4 19. Rxc4 {1-0 Al Tarbosh,W (2230)-Skuhala,B (2089) Titled Tuesday intern op 7th July blitz 2020 (9)}) 13. Nf5 {[%emt 0:07:31]} ({White should try} 13. Nd5 $16 Bxd5 14. exd5) 13... Rfe8 {[%emt 0:00:36]} 14. g5 $36 {[%emt 0:05:58][%mdl 2048] Keeping Black busy.} Nd7 {[%emt 0:00:28]} 15. Nd5 {[%emt 0:07:36]} Bxd5 {[%emt 0:05:25]} 16. exd5 {[%emt 0:04:30]} Na5 {[%emt 0:01:24]} 17. b3 {[%emt 0:04:21] Repels Nc4} Bf8 {[%emt 0:00:18]} 18. Qd2 {[%emt 0:01:44]} Rac8 {[%emt 0:00:19]} (18... Nb7 $142) 19. Rfc1 $16 {[%emt 0:01:43]} Nb7 {[%emt 0:01:13]} 20. a4 {[%emt 0:04:48]} bxa4 {[%emt 0:19:24]} 21. Rxa4 {[%emt 0:00:45] Black is weak on the light squares} Ndc5 {[%emt 0:00:39]} 22. Ra3 {[%emt 0:05:05] White has more active pieces.} (22. Rc4 $142) 22... a5 {[%emt 0:01:49]} 23. c3 {[%emt 0:03:27]} (23. Ng3 $16) 23... Qd7 {[%emt 0:03:21]} (23... a4 $14) 24. Qc2 {[%emt 0:05:50]} e4 {[%emt 0:04:58]} 25. Ng3 {[%emt 0:04:58]} Be7 {[%emt 0:00:25]} 26. Nxe4 {[%emt 0:03:43]} (26. Rb1 $18) 26... Nxe4 {[%emt 0:06:21]} 27. Bxe4 {[%emt 0:00:16]} ({Weaker is} 27. Qxe4 Bxg5 28. Qd4 Bxe3 29. fxe3 Nc5 $15) 27... Qxh3 {[%emt 0:05:19][%mdl 8192]} (27... g6 $16) 28. Bf5 $18 {[%emt 0:00:11] A strong pair of Bishops.} Qf3 {[%emt 0:09:53][%cal Oe7g5]} 29. Bxc8 {[%emt 0:00:54]} ({Much less strong is} 29. Bxh7+ Kf8 $18) (29. Ra4 $142) 29... Rxc8 {[%emt 0:00:13]} 30. Ra4 {[%emt 0:02:35] Against Qg4+. Hoping for Qe4.} Qxd5 {[%emt 0:04:34]} 31. Qe4 {[%emt 0:00:29]} Qxe4 {[%emt 0:00:18]} 32. Rxe4 {[%emt 0:00:06]} Kf8 {[%emt 0:00:28]} 33. Ra4 {[%emt 0:01:16]} f6 {[%emt 0:01:04]} 34. gxf6 {[%emt 0:00:40]} Bxf6 {[%emt 0:00:12]} 35. b4 {[%emt 0:02:07]} (35. Bd4 $142) 35... Rc4 $16 {[%emt 0:00:54]} 36. Bd2 {[%emt 0:07:17]} Ke8 {[%emt 0:06:29]} (36... Nc5 $16 {might work better.} 37. Rxa5 (37. bxc5 Rxa4 38. cxd6 Ke8 $17) 37... Nb3) 37. Ra3 {[%emt 0:02:00]} Bd8 {[%emt 0:03:27]} 38. Rca1 {[%emt 0:03:27]} axb4 {[%emt 0:02:09]} 39. cxb4 {[%emt 0:00:17]} Bb6 {[%emt 0:00:08]} (39... Bf6 $142) 40. Ra8+ {[%emt 0:00:00]} Kd7 {[%emt 0:00:00]} 41. Rg8 {[%emt 0:10:46]} Rg4+ {[%emt 0:03:22]} 42. Kf1 {[%emt 0:00:30] And now Raa8 would win.} d5 {[%emt 0:09:04]} 43. Ra6 {[%emt 0:06:37]} (43. Be3 $18 Bxe3 44. fxe3) 43... Kc6 {[%emt 0:05:39]} 44. Raa8 {[%emt 0:07:31]} Nd6 {[%emt 0:01:33] Against Rac8+} 45. Rh8 {[%emt 0:02:31]} Nc4 {[%emt 0:04:17]} 46. Be1 {[%emt 0:01:26]} Rh4 {[%emt 0:02:39]} (46... d4 $1 $11) 47. Rhc8+ {[%emt 0:01:43]} Kb5 {[%emt 0:01:07] [#]} 48. Rab8 $1 {[%emt 0:00:54] Threatens to win with Rc5+.} Ka6 {[%emt 0:03:24]} 49. Rc6 {[%emt 0:01:11]} Rf4 {[%emt 0:03:59] [#]} 50. Rg8 {[%emt 0:03:48]} (50. Re6 $1 $16) 50... Kb5 {[%emt 0:00:17]} 51. Re6 {[%emt 0:00:56]} Bd4 {[%emt 0:00:21]} 52. Ke2 {[%emt 0:00:46]} Be5 {[%emt 0:05:19]} (52... h5 $16 {was worth a try.}) 53. f3 {[%emt 0:02:35]} ({White should play} 53. Rd8 $18) 53... d4 {[%emt 0:01:11][%mdl 8192]} (53... Rf5 $16 {keeps fighting.}) 54. Rd8 $18 {[%emt 0:00:42] Strongly threatening Rd5+.} Rf5 $2 {[%emt 0:02:21]} (54... Bd6 55. Rexd6 Nxd6 56. Rxd6 g6) 55. Rd5+ {[%emt 0:00:39]} Ka4 {[%emt 0:00:13]} 56. b5 {[%emt 0:00:46][%cal Bb4b5,Bb5b6,Bb6b7][%mdl 32]} Rf6 {[%emt 0:01:22]} 57. Rexe5 {[%emt 0:01:11]} d3+ {[%emt 0:00:48]} (57... Nxe5 58. Rxe5 Rb6) 58. Kxd3 {[%emt 0:01:10]} Nxe5+ {[%emt 0:00:16]} 59. Rxe5 {[%emt 0:00:01] Intending Kc4 and mate.} Rxf3+ {[%emt 0:00:24] KRB-KR} 60. Kc4 {[%emt 0:00:01]} (60. Kc2 $142 Re3 61. Rxe3 Kxb5 62. Re7 h6 63. Rxg7 Kc5 64. Rh7 Kd4 65. Rxh6) 60... Rf8 {[%emt 0:00:54]} 61. b6 {[%emt 0:00:22][%csl Ge1][%cal Re5a5] White mates.} Rf4+ {[%emt 0:00:26]} 62. Kc5 {[%emt 0:00:07]} g5 {[%emt 0:00:16]} 63. b7 {[%emt 0:00:24]} h5 {[%emt 0:01:21] Weighted Error Value: White=0.27 (precise) /Black=0.54} 1-0